[Event "4NCL Div 1 2018-19"]
[Site "Telford"]
[Date "2019.02.09"]
[Round "5.23"]
[White "McDonald, Neil"]
[Black "Dargan, Paul A G"]
[Result "1-0"]
[ECO "B31"]
[WhiteElo "2408"]
[BlackElo "2207"]
[Annotator "NA"]
[PlyCount "55"]
[EventDate "2018.11.10"]
[EventType "team-tourn"]
[EventCountry "GBR"]
[SourceTitle "playchess.com"]
[Source "ChessBase"]
[SourceQuality "1"]
[TimeControl "40/6000+30:3000+30"]

1. e4 {[%emt 0:00:00]} c5 {[%emt 0:00:00]} 2. Nf3 {[%emt 0:00:00]} Nc6 {[%emt 0:00:00]} 3. Bb5 {[%emt 0:00:00]} g6 {[%emt 0:00:48]} 4. Bxc6 {[%emt 0:00:00]} dxc6 {[%emt 0:00:33]} 5. d3 {[%emt 0:01:29]} Qc7 {[%emt 0:03:51]} 6. a4 {[%emt 0:06:18]} Nf6 {[%emt 0:04:53]} 7. h3 {[%emt 0:04:04]} e5 {[%emt 0:03:24]} 8. Nc3 {[%emt 0:02:15]} h6 {[%emt 0:07:37]} 9. a5 {[%emt 0:05:28]} Be6 {[%emt 0:01:13]} 10. b3 {[%emt 0:02:00]} Rd8 {[%emt 0:02:09]} 11. Be3 {[%emt 0:07:26]} c4 {[%emt 0:03:48]} 12. bxc4 {[%emt 0:03:07]} Bb4 {[%emt 0:02:43]} 13. Bd2 {[%emt 0:00:11]} Bxa5 {[%emt 0:01:00]} 14. O-O {[%emt 0:01:26]} Bb6 {[%emt 0:02:44]} 15. Na4 {[%emt 0:04:00]} Nd7 {[%emt 0:14:55]} 16. Nxb6 {[%emt 0:08:53]} axb6 {[%emt 0:02:53]} 17. Nh4 {[%emt 0:01:24]} g5 {[%emt 0:05:30]} 18. Nf5 {[%emt 0:00:40]} Bxf5 {[%emt 0:00:32]} 19. exf5 {[%emt 0:00:06]} O-O {[%emt 0:08:28]} 20. Qh5 {[%emt 0:07:35]} Kg7 {[%emt 0:00:56]} 21. Bxg5 {[%emt 0:03:08]} hxg5 {[%emt 0:00:12]} 22. Qxg5+ {[%emt 0:00:09]} Kh7 {[%emt 0:00:21]} 23. f6 {[%emt 0:01:10]} Nxf6 {[%emt 0:00:10]} 24. Qxf6 {[%emt 0:00:19]} Qd6 {[%emt 0:01:08]} 25. Qf5+ {[%emt 0:04:47]} Kg7 {[%emt 0:02:36]} 26. Rfe1 {[%emt 0:01:36]} Rde8 {[%emt 0:00:16]} 27. Rab1 {[%emt 0:01:43]} Qc5 {[%emt 0:01:57]} 28. Qg5+ {[%emt 0:01:09]} 1-0

[Event "4NCL Div 1 2018-19"]
[Site "Telford"]
[Date "2019.02.09"]
[Round "5.23"]
[White "Longson, Sarah N"]
[Black "Ledger, Dave J"]
[Result "1-0"]
[ECO "C54"]
[WhiteElo "2101"]
[BlackElo "2237"]
[Annotator "NA"]
[PlyCount "99"]
[EventDate "2018.11.10"]
[EventType "team-tourn"]
[EventCountry "GBR"]
[SourceTitle "playchess.com"]
[Source "ChessBase"]
[SourceQuality "1"]
[TimeControl "40/6000+30:3000+30"]

1. e4 {[%emt 0:00:00]} e5 {[%emt 0:00:00]} 2. Nf3 {[%emt 0:00:00]} Nc6 {[%emt 0:00:00]} 3. Bc4 {[%emt 0:00:00]} Bc5 {[%emt 0:00:11]} 4. O-O {[%emt 0:00:00]} Nf6 {[%emt 0:00:14]} 5. d3 {[%emt 0:00:05]} d6 {[%emt 0:01:07]} 6. c3 {[%emt 0:00:19]} a6 {[%emt 0:00:19]} 7. Bb3 {[%emt 0:00:20]} Ba7 {[%emt 0:00:17]} 8. Nbd2 {[%emt 0:00:18]} O-O {[%emt 0:00:12]} 9. h3 {[%emt 0:00:39]} Be6 {[%emt 0:01:07]} 10. Re1 {[%emt 0:01:15]} Re8 {[%emt 0:04:04]} 11. Nf1 {[%emt 0:02:19]} Ne7 {[%emt 0:04:36]} 12. Ng5 {[%emt 0:05:54]} Ng6 {[%emt 0:09:22]} 13. Nxe6 {[%emt 0:04:48]} fxe6 {[%emt 0:00:05]} 14. Ne3 {[%emt 0:16:14]} Kh8 {[%emt 0:07:40]} 15. Ng4 {[%emt 0:17:31]} Nh5 {[%emt 0:13:53]} 16. d4 {[%emt 0:16:04]} Qh4 {[%emt 0:05:09]} 17. Be3 {[%emt 0:07:09]} Nhf4 {[%emt 0:07:23]} 18. Bxf4 {[%emt 0:12:49]} Nxf4 {[%emt 0:02:17]} 19. g3 {[%emt 0:01:42]} Qxh3 {[%emt 0:11:28]} 20. gxf4 {[%emt 0:00:29]} exf4 {[%emt 0:00:21]} 21. Nh2 {[%emt 0:02:21]} e5 {[%emt 0:07:23]} 22. Qf3 {[%emt 0:00:59]} Qh6 {[%emt 0:00:52]} 23. Rad1 {[%emt 0:02:01]} Re7 {[%emt 0:02:50]} 24. Qg4 {[%emt 0:05:02]} Qf6 {[%emt 0:04:19]} 25. Nf3 {[%emt 0:03:40]} Rf8 {[%emt 0:02:23]} 26. Kg2 {[%emt 0:02:42]} g6 {[%emt 0:00:49]} 27. Qg5 {[%emt 0:03:07]} Kg7 {[%emt 0:03:54]} 28. dxe5 {[%emt 0:01:54]} dxe5 {[%emt 0:00:10]} 29. Qxf6+ {[%emt 0:01:01]} Kxf6 {[%emt 0:00:32]} 30. Rd5 {[%emt 0:00:20]} h5 {[%emt 0:00:38]} 31. Red1 {[%emt 0:00:26]} g5 {[%emt 0:01:44]} 32. Rd8 {[%emt 0:00:49]} Rxd8 {[%emt 0:00:45]} 33. Rxd8 {[%emt 0:00:02]} g4 {[%emt 0:01:24]} 34. Nh4 {[%emt 0:01:06]} Kg5 {[%emt 0:00:21]} 35. Nf5 {[%emt 0:00:12]} Rh7 {[%emt 0:01:24]} 36. Rg8+ {[%emt 0:01:15]} Kf6 {[%emt 0:00:09]} 37. Rf8+ {[%emt 0:00:09]} Kg5 {[%emt 0:00:19]} 38. Rg8+ {[%emt 0:00:25]} Kf6 {[%emt 0:00:04]} 39. Rf8+ {[%emt 0:00:07]} Kg5 {[%emt 0:00:07]} 40. Re8 {[%emt 0:02:30]} f3+ {[%emt 0:05:55]} 41. Kg3 {[%emt 0:11:44]} c6 {[%emt 0:15:59]} 42. Rg8+ {[%emt 0:06:00]} Kf6 {[%emt 0:00:05]} 43. Nh4 {[%emt 0:09:14]} a5 {[%emt 0:03:26]} 44. Rg6+ {[%emt 0:01:23]} Ke7 {[%emt 0:00:05]} 45. Nf5+ {[%emt 0:08:02]} Kd7 {[%emt 0:01:34]} 46. Bg8 {[%emt 0:03:18]} Rh8 {[%emt 0:00:14]} 47. Rg7+ {[%emt 0:00:59]} Kc8 {[%emt 0:01:30]} 48. Nd6+ {[%emt 0:00:48]} Kb8 {[%emt 0:00:03]} 49. Nf7 {[%emt 0:05:45]} h4+ {[%emt 0:00:18]} 50. Kxg4 {[%emt 0:00:21]} 1-0

[Event "4NCL Div 1 2018-19"]
[Site "Telford"]
[Date "2019.02.09"]
[Round "5.24"]
[White "Ledger, Stephen C"]
[Black "Reeve, Andy K"]
[Result "1/2-1/2"]
[ECO "B07"]
[WhiteElo "2023"]
[BlackElo "2085"]
[Annotator "NA"]
[PlyCount "120"]
[EventDate "2018.11.10"]
[EventType "team-tourn"]
[EventCountry "GBR"]
[SourceTitle "playchess.com"]
[Source "ChessBase"]
[SourceQuality "1"]
[TimeControl "40/6000+30:3000+30"]

1. d4 {[%emt 0:00:00]} d6 {[%emt 0:00:00]} 2. e4 {[%emt 0:00:04]} Nf6 {[%emt 0:00:00]} 3. Nc3 {[%emt 0:00:23]} c6 {[%emt 0:00:02]} 4. Nf3 {[%emt 0:00:55]} Bg4 {[%emt 0:00:13]} 5. h3 {[%emt 0:01:12]} Bh5 {[%emt 0:00:08]} 6. Qe2 {[%emt 0:02:22]} Bg6 {[%emt 0:10:41]} 7. Nh4 {[%emt 0:09:33]} e5 {[%emt 0:03:57]} 8. Nxg6 {[%emt 0:04:08]} hxg6 {[%emt 0:01:24]} 9. Be3 {[%emt 0:01:22]} Be7 {[%emt 0:06:17]} 10. g3 {[%emt 0:02:41]} b5 {[%emt 0:10:46]} 11. Bg2 {[%emt 0:04:50]} a6 {[%emt 0:17:46]} 12. O-O {[%emt 0:12:07]} Nbd7 {[%emt 0:06:08]} 13. Rad1 {[%emt 0:03:12]} Qc7 {[%emt 0:04:41]} 14. f4 {[%emt 0:04:00]} O-O {[%emt 0:07:24]} 15. g4 {[%emt 0:05:41]} b4 {[%emt 0:12:34]} 16. Na4 {[%emt 0:04:39]} Rae8 {[%emt 0:05:57]} 17. b3 {[%emt 0:02:30]} c5 {[%emt 0:07:28]} 18. dxe5 {[%emt 0:02:48]} dxe5 {[%emt 0:00:11]} 19. Qxa6 {[%emt 0:02:20]} Ra8 {[%emt 0:04:50]} 20. Qe2 {[%emt 0:13:56]} exf4 {[%emt 0:00:23]} 21. Bxf4 {[%emt 0:00:52]} Ne5 {[%emt 0:00:36]} 22. Qe3 {[%emt 0:05:58]} Bd6 {[%emt 0:01:14]} 23. Qg3 {[%emt 0:04:11]} Rfe8 {[%emt 0:00:41]} 24. c3 {[%emt 0:06:49]} Nfd7 {[%emt 0:01:51]} 25. Rd5 {[%emt 0:02:28]} Nf6 {[%emt 0:00:49]} 26. Rd2 {[%emt 0:00:39]} g5 {[%emt 0:00:07]} 27. Bxg5 {[%emt 0:02:18]} Nc4 {[%emt 0:00:21]} 28. Rxd6 {[%emt 0:00:59]} Qxd6 {[%emt 0:01:13]} 29. Qxd6 {[%emt 0:01:33]} Nxd6 {[%emt 0:00:20]} 30. e5 {[%emt 0:02:00]} Rxa4 {[%emt 0:00:16]} 31. bxa4 {[%emt 0:01:03]} Rxe5 {[%emt 0:00:08]} 32. Bxf6 {[%emt 0:00:43]} gxf6 {[%emt 0:00:21]} 33. cxb4 {[%emt 0:00:45]} cxb4 {[%emt 0:00:17]} 34. Rxf6 {[%emt 0:01:31]} Nc4 {[%emt 0:02:16]} 35. Rf4 {[%emt 0:02:09]} Rc5 {[%emt 0:00:09]} 36. Kf2 {[%emt 0:03:15]} Ne5 {[%emt 0:00:03]} 37. Kg1 {[%emt 0:01:17]} Nc4 {[%emt 0:00:17]} 38. Kh2 {[%emt 0:00:48]} Ne3 {[%emt 0:00:17]} 39. Re4 {[%emt 0:00:37]} Rc3 {[%emt 0:01:11]} 40. Kg1 {[%emt 0:00:49]} Nc4 {[%emt 0:05:05]} 41. h4 {[%emt 0:14:09]} Rc1+ {[%emt 0:11:20]} 42. Kh2 {[%emt 0:01:23]} Kg7 {[%emt 0:01:08]} 43. g5 {[%emt 0:02:27]} Rc2 {[%emt 0:04:27]} 44. Kg3 {[%emt 0:02:48]} Rc3+ {[%emt 0:06:11]} 45. Kf4 {[%emt 0:03:26]} Rc2 {[%emt 0:01:29]} 46. Bf3 {[%emt 0:02:36]} Nb2 {[%emt 0:03:56]} 47. h5 {[%emt 0:06:36]} Nxa4 {[%emt 0:02:29]} 48. Rxb4 {[%emt 0:00:57]} Nc5 {[%emt 0:00:29]} 49. Rb5 {[%emt 0:05:03]} Ne6+ {[%emt 0:00:29]} 50. Kg4 {[%emt 0:02:48]} Rc4+ {[%emt 0:01:47]} 51. Kg3 {[%emt 0:00:31]} Rc3 {[%emt 0:04:25]} 52. Rf5 {[%emt 0:04:00]} Ra3 {[%emt 0:05:14]} 53. Rd5 {[%emt 0:03:50]} Rxa2 {[%emt 0:02:25]} 54. h6+ {[%emt 0:00:53]} Kg8 {[%emt 0:02:39]} 55. Rb5 {[%emt 0:03:18]} Ra3 {[%emt 0:01:20]} 56. Kg4 {[%emt 0:01:06]} Ra4+ {[%emt 0:01:01]} 57. Kg3 {[%emt 0:00:22]} Ra3 {[%emt 0:00:15]} 58. Kg4 {[%emt 0:01:13]} Rxf3 {[%emt 0:00:02]} 59. Rb8+ {[%emt 0:00:04]} Kh7 60. Kxf3 {[%emt 0:00:03]} Nxg5+ {[%emt 0:00:02] Ke4} 1/2-1/2

[Event "4NCL Div 1 2018-19"]
[Site "Telford"]
[Date "2019.02.09"]
[Round "5.24"]
[White "Smith, Lynda"]
[Black "Fitzsimons, David"]
[Result "0-1"]
[ECO "B25"]
[WhiteElo "1930"]
[BlackElo "2301"]
[Annotator "NA"]
[PlyCount "52"]
[EventDate "2018.11.10"]
[EventType "team-tourn"]
[EventCountry "GBR"]
[SourceTitle "playchess.com"]
[Source "ChessBase"]
[SourceQuality "1"]
[TimeControl "40/6000+30:3000+30"]

1. e4 {[%emt 0:00:00]} c5 {[%emt 0:00:00]} 2. Nc3 {[%emt 0:00:00]} Nc6 {[%emt 0:00:00]} 3. g3 {[%emt 0:00:00]} g6 {[%emt 0:00:00]} 4. Bg2 {[%emt 0:00:04]} Bg7 {[%emt 0:00:01]} 5. d3 {[%emt 0:00:19]} d6 {[%emt 0:00:07]} 6. h3 {[%emt 0:00:55]} e5 {[%emt 0:02:27]} 7. Be3 {[%emt 0:01:35]} Nge7 {[%emt 0:00:07]} 8. Qd2 {[%emt 0:00:50]} h5 {[%emt 0:01:17]} 9. Nge2 {[%emt 0:02:27]} Nd4 {[%emt 0:00:16]} 10. f4 {[%emt 0:02:20]} Be6 {[%emt 0:00:58]} 11. O-O {[%emt 0:01:59]} Qd7 {[%emt 0:00:25]} 12. Nd1 {[%emt 0:04:55]} Bxh3 {[%emt 0:02:52]} 13. c3 {[%emt 0:02:01]} Nxe2+ {[%emt 0:03:22]} 14. Qxe2 {[%emt 0:00:11]} h4 {[%emt 0:01:42]} 15. Bxh3 {[%emt 0:02:42]} Qxh3 {[%emt 0:00:08]} 16. g4 {[%emt 0:00:53]} f5 {[%emt 0:00:42]} 17. Nf2 {[%emt 0:04:07]} Qg3+ {[%emt 0:00:44]} 18. Kh1 {[%emt 0:00:25]} exf4 {[%emt 0:00:16]} 19. Bxf4 {[%emt 0:02:16]} Qxf4 {[%emt 0:00:06]} 20. exf5 {[%emt 0:00:59]} gxf5 {[%emt 0:03:44]} 21. gxf5 {[%emt 0:06:30]} Qxf5 {[%emt 0:04:14]} 22. Rae1 {[%emt 0:02:50]} O-O-O {[%emt 0:01:00]} 23. Qxe7 {[%emt 0:08:25]} Qf3+ {[%emt 0:00:18]} 24. Kg1 {[%emt 0:00:45]} Rhg8 {[%emt 0:00:36]} 25. Qe6+ {[%emt 0:01:39]} Kb8 {[%emt 0:00:06]} 26. Ng4 {[%emt 0:02:20]} Bd4+ {[%emt 0:00:13]} 0-1

[Event "4NCL Div 1 2018-19"]
[Site "Telford"]
[Date "2019.02.09"]
[Round "5.25"]
[White "Cornette, Matthieu"]
[Black "Taylor, Adam C"]
[Result "1/2-1/2"]
[ECO "B38"]
[WhiteElo "2584"]
[BlackElo "2372"]
[Annotator "ChessBase"]
[PlyCount "93"]
[EventDate "2018.11.10"]
[EventType "team-tourn"]
[EventCountry "GBR"]
[SourceTitle "playchess.com"]
[Source "ChessBase"]
[SourceQuality "1"]
[TimeControl "40/6000+30:3000+30"]

1. Nf3 {[%emt 0:01:09]} Nf6 {[%emt 0:00:00]} 2. c4 {[%emt 0:00:10]} c5 {[%emt 0:00:42]} 3. Nc3 {[%emt 0:00:30]} g6 {[%emt 0:00:59]} 4. d4 {[%emt 0:00:37]} cxd4 {[%emt 0:03:33]} 5. Nxd4 {[%emt 0:00:26]} Nc6 {[%emt 0:00:27]} 6. e4 {[%emt 0:00:34]} Bg7 {[%emt 0:01:12]} 7. Be3 {[%emt 0:01:08]} O-O {[%emt 0:00:17]} 8. Be2 {[%emt 0:00:18]} d6 {[%emt 0:02:13]} 9. O-O {[%emt 0:00:40]} Bd7 {[%emt 0:00:20]} 10. h3 {[%emt 0:01:22]} Nxd4 {[%emt 0:02:39]} 11. Bxd4 {[%emt 0:00:24]} Bc6 {[%emt 0:00:43]} 12. Qc2 {[%emt 0:01:13]} a5 {[%emt 0:04:43]} 13. Rad1 {[%emt 0:02:11]} Nd7 {[%emt 0:01:04]} 14. Bxg7 {[%emt 0:00:08]} Kxg7 {[%emt 0:00:04]} 15. Bg4 {[%emt 0:00:06]} Ne5 {[%emt 0:13:01]} 16. c5 {[%emt 0:00:53]} Nxg4 {[%emt 0:00:49]} 17. hxg4 {[%emt 0:00:05]} Qc8 {[%emt 0:00:40]} 18. cxd6 {[%emt 0:00:06]} Qxg4 {[%emt 0:03:56]} 19. dxe7 {[%emt 0:00:08]} Rfe8 {[%emt 0:00:03]} 20. Nd5 {[%emt 0:00:15]} Bxd5 {[%emt 0:00:53]} 21. Qc3+ {[%emt 0:00:17]} Kg8 {[%emt 0:00:50]} 22. exd5 {[%emt 0:00:03]} Rxe7 {[%emt 0:00:52]} 23. d6 {[%emt 0:00:25]} Rd7 {[%emt 0:03:45]} 24. Rd4 {[%emt 0:00:21]} Qe6 {[%emt 0:07:37]} 25. Re1 {[%emt 0:04:53]} Qf6 {[%emt 0:04:58]} 26. Red1 {[%emt 0:02:35]} Kg7 {[%emt 0:05:23]} 27. R1d3 {[%emt 0:10:28]} Ra6 {[%emt 0:08:20]} 28. Qd2 {[%emt 0:13:03]} h5 {[%emt 0:04:22]} 29. Rd5 {[%emt 0:03:42]} Rb6 {[%emt 0:06:57]} 30. R3d4 {[%emt 0:02:39]} Rc6 {[%emt 0:12:25]} 31. Kh2 {[%emt 0:12:59]} b6 {[%emt 0:11:01]} 32. g3 {[%emt 0:19:49]} Qe6 {[%emt 0:04:46]} 33. a3 {[%emt 0:05:09]} Qf6 {[%emt 0:00:32]} 34. Kg2 {[%emt 0:01:48]} Qe6 {[%emt 0:00:17]} 35. b4 {[%emt 0:09:47]} axb4 {[%emt 0:03:04]} 36. axb4 {[%emt 0:03:28]} Qf6 {[%emt 0:00:40]} 37. Qd3 {[%emt 0:03:59]} Qe6 {[%emt 0:02:22]} 38. Qd2 {[%emt 0:07:45]} Kh7 {[%emt 0:00:33]} 39. Qf4 {[%emt 0:02:20]} Kg7 {[%emt 0:01:15]} 40. Rd3 {[%emt 0:01:31]} Qf6 {[%emt 0:00:49]} 41. Qd2 {[%emt 0:03:51]} Qa1 {[%emt 0:10:10]} 42. Qe2 {[%emt 0:08:41]} Rc1 {[%emt 0:02:00]} 43. Rd1 {[%emt 0:01:17]} Rxd1 {[%emt 0:00:09]} 44. Rxd1 {[%emt 0:00:15]} Qf6 {[%emt 0:00:04]} 45. Qd3 {[%emt 0:00:14]} Qe5 {[%emt 0:00:09]} 46. Rd2 {[%emt 0:00:19]} g5 {[%emt 0:03:13]} 47. Rd1 {[%emt 0:04:06]} 1/2-1/2

[Event "4NCL Div 1 2018-19"]
[Site "Telford"]
[Date "2019.02.09"]
[Round "5.25"]
[White "Gourlay, Iain"]
[Black "Turner, Matthew J"]
[Result "0-1"]
[ECO "A24"]
[WhiteElo "2358"]
[BlackElo "2536"]
[Annotator "ChessBase"]
[PlyCount "112"]
[EventDate "2018.11.10"]
[EventType "team-tourn"]
[EventCountry "GBR"]
[SourceTitle "playchess.com"]
[Source "ChessBase"]
[SourceQuality "1"]
[TimeControl "40/6000+30:3000+30"]

1. c4 {[%emt 0:09:14]} Nf6 {[%emt 0:00:00]} 2. g3 {[%emt 0:00:23]} g6 {[%emt 0:00:28]} 3. Bg2 {[%emt 0:00:30]} Bg7 {[%emt 0:00:05]} 4. Nc3 {[%emt 0:00:33]} O-O {[%emt 0:00:40]} 5. d3 {[%emt 0:00:37]} c6 {[%emt 0:01:50]} 6. e4 {[%emt 0:01:25]} e5 {[%emt 0:02:07]} 7. Nge2 {[%emt 0:02:02]} d6 {[%emt 0:00:13]} 8. O-O {[%emt 0:01:07]} a6 {[%emt 0:01:05]} 9. b4 {[%emt 0:20:25]} b5 {[%emt 0:02:28]} 10. cxb5 {[%emt 0:05:44]} axb5 {[%emt 0:00:52]} 11. d4 {[%emt 0:12:23]} exd4 {[%emt 0:02:42]} 12. Nxd4 {[%emt 0:00:47]} Ng4 {[%emt 0:00:26]} 13. Bf4 {[%emt 0:26:45]} Ne5 {[%emt 0:05:36]} 14. a4 {[%emt 0:05:15]} bxa4 {[%emt 0:04:42]} 15. Rxa4 {[%emt 0:00:25]} Rxa4 {[%emt 0:00:10]} 16. Qxa4 {[%emt 0:00:36]} Qb6 {[%emt 0:00:57]} 17. b5 {[%emt 0:06:14]} Qc5 {[%emt 0:04:01]} 18. Nce2 {[%emt 0:04:01]} cxb5 {[%emt 0:00:22]} 19. Qxb5 {[%emt 0:00:28]} Ba6 {[%emt 0:00:24]} 20. Qa4 {[%emt 0:01:27]} Nc4 {[%emt 0:02:07]} 21. Qd1 {[%emt 0:02:42]} Nb2 {[%emt 0:06:40]} 22. Qd2 {[%emt 0:00:51]} Bxd4 {[%emt 0:00:08]} 23. Qxd4 {[%emt 0:02:30]} Qxd4 {[%emt 0:00:16]} 24. Nxd4 {[%emt 0:00:05]} Bxf1 {[%emt 0:00:04]} 25. Bxf1 {[%emt 0:00:09]} Rc8 {[%emt 0:01:44]} 26. Bxd6 {[%emt 0:01:11]} Nc6 {[%emt 0:01:31]} 27. Nxc6 {[%emt 0:03:01]} Rxc6 {[%emt 0:00:07]} 28. Bf4 {[%emt 0:00:17]} Rc2 {[%emt 0:00:47]} 29. Be5 {[%emt 0:00:55]} Nd1 {[%emt 0:03:44]} 30. Bd4 {[%emt 0:00:15]} Ra2 {[%emt 0:00:24]} 31. Bb5 {[%emt 0:01:24]} Rd2 {[%emt 0:00:37]} 32. Ba7 {[%emt 0:00:10]} Nc3 {[%emt 0:00:18]} 33. Bc6 {[%emt 0:00:44]} Rd6 {[%emt 0:00:17]} 34. Bd5 {[%emt 0:01:00]} Nxd5 {[%emt 0:00:05]} 35. exd5 {[%emt 0:00:04]} Rxd5 {[%emt 0:00:05]} 36. h4 {[%emt 0:00:17]} Kg7 {[%emt 0:00:30]} 37. Kg2 {[%emt 0:00:20]} Rd3 {[%emt 0:01:17]} 38. Be3 {[%emt 0:01:16]} Kf6 {[%emt 0:00:25]} 39. Kf3 {[%emt 0:00:50]} Ke5 {[%emt 0:01:11]} 40. Kg2 {[%emt 0:00:25]} Ke4 {[%emt 0:02:26]} 41. Bg5 {[%emt 0:51:05]} Rd5 {[%emt 0:51:18]} 42. Be3 {[%emt 0:00:00]} h5 {[%emt 0:00:00]} 43. Bh6 {[%emt 0:00:00]} Rf5 {[%emt 0:00:00]} 44. Be3 {[%emt 0:00:00]} Kd3 {[%emt 0:00:00]} 45. Bb6 {[%emt 0:00:00]} Ke2 {[%emt 0:00:00]} 46. Be3 {[%emt 0:00:00]} Rf3 {[%emt 0:00:00]} 47. Bd4 {[%emt 0:00:00]} f5 {[%emt 0:00:00]} 48. Bb6 {[%emt 0:00:00]} f4 {[%emt 0:00:00]} 49. gxf4 {[%emt 0:00:00]} Rxf4 {[%emt 0:00:00]} 50. Kg3 {[%emt 0:00:00]} Rg4+ {[%emt 0:00:00]} 51. Kh3 {[%emt 0:00:00]} Kf3 {[%emt 0:00:00]} 52. Ba7 {[%emt 0:00:00]} Rg2 {[%emt 0:00:00]} 53. Bb6 {[%emt 0:00:00]} Rxf2 {[%emt 0:00:00]} 54. Bc5 {[%emt 0:00:00]} Rf1 {[%emt 0:00:00]} 55. Bd6 {[%emt 0:00:00]} Rh1+ {[%emt 0:00:00]} 56. Bh2 {[%emt 0:00:00]} Rxh2+ {[%emt 0:00:00]} 0-1

[Event "4NCL Div 1 2018-19"]
[Site "Telford"]
[Date "2019.02.09"]
[Round "5.26"]
[White "Taylor, Martin R"]
[Black "Sreeves, Clement"]
[Result "1/2-1/2"]
[ECO "D97"]
[WhiteElo "2337"]
[BlackElo "2358"]
[Annotator "NA"]
[PlyCount "58"]
[EventDate "2018.11.10"]
[EventType "team-tourn"]
[EventCountry "GBR"]
[SourceTitle "playchess.com"]
[Source "ChessBase"]
[SourceQuality "1"]
[TimeControl "40/6000+30:3000+30"]

1. d4 {[%emt 0:00:00]} Nf6 {[%emt 0:00:04]} 2. c4 {[%emt 0:00:00]} g6 {[%emt 0:00:04]} 3. Nc3 {[%emt 0:00:00]} d5 {[%emt 0:00:08]} 4. Nf3 {[%emt 0:00:21]} Bg7 {[%emt 0:00:05]} 5. Qb3 {[%emt 0:00:14]} dxc4 {[%emt 0:00:08]} 6. Qxc4 {[%emt 0:00:07]} O-O {[%emt 0:00:07]} 7. e4 {[%emt 0:00:26]} Nc6 {[%emt 0:00:20]} 8. Be2 {[%emt 0:01:39]} e5 {[%emt 0:07:16]} 9. d5 {[%emt 0:01:31]} Nd4 {[%emt 0:00:07]} 10. Nxd4 {[%emt 0:02:02]} exd4 {[%emt 0:00:11]} 11. Qxd4 {[%emt 0:00:12]} c6 {[%emt 0:00:12]} 12. Qc4 {[%emt 0:03:15]} cxd5 {[%emt 0:00:36]} 13. exd5 {[%emt 0:00:59]} b5 {[%emt 0:00:20]} 14. Qxb5 {[%emt 0:11:20]} a5 {[%emt 0:00:15]} 15. Qb3 {[%emt 0:17:00]} Re8 {[%emt 0:13:39]} 16. O-O {[%emt 0:05:45]} a4 {[%emt 0:03:03]} 17. Qd1 {[%emt 0:11:26]} a3 {[%emt 0:13:48]} 18. Rb1 {[%emt 0:08:26]} Nxd5 {[%emt 0:23:04]} 19. Qxd5 {[%emt 0:23:47]} Qxd5 {[%emt 0:00:27]} 20. Nxd5 {[%emt 0:00:05]} Rxe2 {[%emt 0:09:25]} 21. bxa3 {[%emt 0:05:20]} Bf5 {[%emt 0:00:38]} 22. Rb3 {[%emt 0:04:42]} Bd4 {[%emt 0:09:46]} 23. Be3 {[%emt 0:04:10]} Bxe3 {[%emt 0:02:43]} 24. Rxe3 {[%emt 0:03:34]} Rxe3 {[%emt 0:13:15]} 25. Nxe3 {[%emt 0:00:08]} Bd3 {[%emt 0:05:25]} 26. Rd1 {[%emt 0:01:43]} Rxa3 {[%emt 0:00:00]} 27. h3 {[%emt 0:01:35]} Kg7 {[%emt 0:00:59]} 28. Kh2 {[%emt 0:02:40]} Kf6 {[%emt 0:00:25]} 29. Rd2 {[%emt 0:01:13]} Ke5 {[%emt 0:00:39]} 1/2-1/2

[Event "4NCL Div 1 2018-19"]
[Site "Telford"]
[Date "2019.02.09"]
[Round "5.26"]
[White "Derakhshani, Borna"]
[Black "Szczepkowska, Karina"]
[Result "1/2-1/2"]
[ECO "D02"]
[WhiteElo "2324"]
[BlackElo "2404"]
[Annotator "ChessBase"]
[PlyCount "97"]
[EventDate "2018.11.10"]
[EventType "team-tourn"]
[EventCountry "GBR"]
[SourceTitle "playchess.com"]
[Source "ChessBase"]
[SourceQuality "1"]
[TimeControl "40/6000+30:3000+30"]

1. Nf3 {[%emt 0:00:00]} Nf6 {[%emt 0:00:28]} 2. d4 {[%emt 0:00:00]} d5 {[%emt 0:00:57]} 3. Bf4 {[%emt 0:00:12]} c5 {[%emt 0:01:05]} 4. e3 {[%emt 0:01:42]} Nc6 {[%emt 0:01:24]} 5. c3 {[%emt 0:00:12]} Qb6 {[%emt 0:03:05]} 6. Qb3 {[%emt 0:00:09]} c4 {[%emt 0:00:44]} 7. Qc2 {[%emt 0:00:07]} Bf5 {[%emt 0:02:22]} 8. Qc1 {[%emt 0:00:04]} Nh5 {[%emt 0:01:00]} 9. Be5 {[%emt 0:04:14]} f6 {[%emt 0:08:57]} 10. Bg3 {[%emt 0:00:08]} g5 {[%emt 0:07:53]} 11. Nbd2 {[%emt 0:01:24]} Nxg3 {[%emt 0:02:34]} 12. hxg3 {[%emt 0:00:05]} Qc7 {[%emt 0:01:05]} 13. Be2 {[%emt 0:01:04]} O-O-O {[%emt 0:07:19]} 14. b3 {[%emt 0:04:47]} cxb3 {[%emt 0:02:57]} 15. axb3 {[%emt 0:01:08]} Kb8 {[%emt 0:01:50]} 16. b4 {[%emt 0:01:48]} e6 {[%emt 0:07:54]} 17. Nb3 {[%emt 0:01:23]} b6 {[%emt 0:00:38]} 18. Qb2 {[%emt 0:07:39]} h5 {[%emt 0:04:38]} 19. g4 {[%emt 0:18:51]} Be4 {[%emt 0:17:42]} 20. b5 {[%emt 0:08:55]} Ne7 {[%emt 0:01:41]} 21. Nbd2 {[%emt 0:00:13]} Bg6 {[%emt 0:05:38]} 22. gxh5 {[%emt 0:04:15]} g4 {[%emt 0:06:56]} 23. Nh4 {[%emt 0:00:15]} Bxh5 {[%emt 0:00:31]} 24. g3 {[%emt 0:00:22]} f5 {[%emt 0:05:28]} 25. Ng2 {[%emt 0:02:43]} Bg7 {[%emt 0:02:53]} 26. Nf4 {[%emt 0:00:23]} Bf7 {[%emt 0:00:11]} 27. Rxh8 {[%emt 0:00:54]} Rxh8 {[%emt 0:00:06]} 28. Nd3 {[%emt 0:00:26]} Be8 {[%emt 0:02:36]} 29. Nb4 {[%emt 0:01:55]} Qb7 {[%emt 0:02:08]} 30. Qa3 {[%emt 0:09:27]} Nc8 {[%emt 0:01:25]} 31. Qa4 {[%emt 0:01:19]} Bf8 {[%emt 0:03:48]} 32. Nc6+ {[%emt 0:01:34]} Bxc6 {[%emt 0:00:48]} 33. bxc6 {[%emt 0:00:02]} Qc7 {[%emt 0:00:58]} 34. Ba6 {[%emt 0:06:10]} Bd6 {[%emt 0:04:15]} 35. Bxc8 {[%emt 0:01:58]} Rxc8 {[%emt 0:00:22]} 36. c4 {[%emt 0:00:02]} Ka8 {[%emt 0:01:42]} 37. Ke2 {[%emt 0:05:51]} Qh7 {[%emt 0:00:39]} 38. Rb1 {[%emt 0:03:35]} Rb8 {[%emt 0:01:01]} 39. Qa2 {[%emt 0:01:58]} Qf7 {[%emt 0:01:02]} 40. Rb5 {[%emt 0:00:34]} dxc4 {[%emt 0:00:40]} 41. Nxc4 {[%emt 0:50:42]} Qc7 {[%emt 0:04:08]} 42. d5 {[%emt 0:00:00]} Bc5 {[%emt 0:02:11]} 43. Na5 {[%emt 0:00:00]} Rd8 {[%emt 0:12:40]} 44. dxe6 {[%emt 0:00:00]} Qd6 {[%emt 0:05:02]} 45. Qc2 {[%emt 0:00:00]} Qd5 {[%emt 0:06:27]} 46. Nb7 {[%emt 0:00:00]} Qf3+ {[%emt 0:16:02]} 47. Ke1 {[%emt 0:00:00]} Qh1+ {[%emt 0:06:14]} 48. Ke2 {[%emt 0:00:00]} Qf3+ {[%emt 0:00:19]} 49. Ke1 {[%emt 0:00:00]} 1/2-1/2